[Event "Titled Tuesday Blitz June 13 Late 2023"]
[White "Zhou, Qiyu"]
[Black "Golubev, Mikhail"]
[WhiteFideId "505161"]
[BlackFideId "14100983"]
[WhiteElo "2101"]
[BlackElo "2374"]
[Result "1-0"]
[Round "7"]
[TimeControl "180+2"]
[Date "2023.06.13"]
[WhiteClock "0:00:07"]
[BlackClock "0:00:00"]
[Board "118"]

1. e4 {[%clk 0:03:00]}  c5 {[%clk 0:02:59]} 2. Nf3 {[%clk 0:03:00]}  d6 {[%clk 0:02:58]} 3. d4 {[%clk 0:02:59]}  cxd4 {[%clk 0:02:58]} 4. Nxd4 {[%clk 0:03:00]}  Nf6 {[%clk 0:02:58]} 5. Nc3 {[%clk 0:03:00]}  g6 {[%clk 0:02:58]} 6. Be3 {[%clk 0:02:58]}  Bg7 {[%clk 0:02:58]} 7. f3 {[%clk 0:02:56]}  Nc6 {[%clk 0:02:58]} 8. Qd2 {[%clk 0:02:57]}  O-O {[%clk 0:02:59]} 9. O-O-O {[%clk 0:02:56]}  d5 {[%clk 0:02:58]} 10. Qe1 {[%clk 0:02:54]}  e5 {[%clk 0:02:56]} 11. Nxc6 {[%clk 0:02:47]}  bxc6 {[%clk 0:02:57]} 12. exd5 {[%clk 0:02:47]}  Nxd5 {[%clk 0:02:55]} 13. Bc4 {[%clk 0:02:45]}  Be6 {[%clk 0:02:54]} 14. Ne4 {[%clk 0:02:44]}  Qc7 {[%clk 0:02:53]} 15. Bc5 {[%clk 0:02:40]}  Rfd8 {[%clk 0:02:52]} 16. Kb1 {[%clk 0:02:38]}  h6 {[%clk 0:02:29]} 17. g4 {[%clk 0:02:35]}  f5 {[%clk 0:02:29]} 18. gxf5 {[%clk 0:02:33]}  gxf5 {[%clk 0:02:28]} 19. Nc3 {[%clk 0:02:31]}  Qf7 {[%clk 0:02:21]} 20. Bb3 {[%clk 0:02:24]}  Kh7 {[%clk 0:02:18]} 21. Rg1 {[%clk 0:02:15]}  Nf4 {[%clk 0:01:59]} 22. Qg3 {[%clk 0:01:57]}  Bxb3 {[%clk 0:01:34]} 23. axb3 {[%clk 0:01:53]}  Ne6 {[%clk 0:01:30]} 24. Bd6 {[%clk 0:01:41]}  Qf6 {[%clk 0:01:15]} 25. Rge1 {[%clk 0:01:31]}  e4 {[%clk 0:00:42]} 26. fxe4 {[%clk 0:01:27]}  fxe4 {[%clk 0:00:42]} 27. Rxe4 {[%clk 0:01:16]}  Rd7 {[%clk 0:00:27]} 28. Be5 {[%clk 0:00:22]}  Rxd1+ {[%clk 0:00:26]} 29. Nxd1 {[%clk 0:00:23]}  Qf5 {[%clk 0:00:22]} 30. Re1 {[%clk 0:00:19]}  Rg8 {[%clk 0:00:21]} 31. Bxg7 {[%clk 0:00:19]}  Rxg7 {[%clk 0:00:20]} 32. Qe3 {[%clk 0:00:19]}  Nf4 {[%clk 0:00:17]} 33. Rf1 {[%clk 0:00:17]}  Rg2 {[%clk 0:00:13]} 34. Qxf4 {[%clk 0:00:11]}  Qxc2+ {[%clk 0:00:09]} 35. Ka2 {[%clk 0:00:10]}  Rg7 {[%clk 0:00:03]} 36. Qf5+ {[%clk 0:00:10]}  Qxf5 {[%clk 0:00:03]} 37. Rxf5 {[%clk 0:00:11]}  Rg4 {[%clk 0:00:02]} 38. Rf7+ {[%clk 0:00:11]}  Kg6 {[%clk 0:00:01]} 39. Rf2 {[%clk 0:00:12]}  Rh4 {[%clk 0:00:01]} 40. Ne3 {[%clk 0:00:11]}  Kg5 {[%clk 0:00:01]} 41. Nc4 {[%clk 0:00:10]}  Rh3 {[%clk 0:00:02]} 42. Ne5 {[%clk 0:00:10]}  Kh5 {[%clk 0:00:01]} 43. Nxc6 {[%clk 0:00:07]}  Re3 {[%clk 0:00:00]} 44. Nxa7 {[%clk 0:00:07]} 1-0


[Site "https://www.chess.com"]

[Event "Titled Tuesday Blitz June 13 Late 2023"]
[White "Sairam, Pranav"]
[Black "Toniutti, Ezio"]
[WhiteFideId "30951330"]
[BlackFideId "113034"]
[WhiteElo "1918"]
[BlackElo "2215"]
[Result "0-1"]
[Round "7"]
[TimeControl "180+2"]
[Date "2023.06.13"]
[WhiteClock "0:00:00"]
[BlackClock "0:01:18"]
[Board "120"]

1. e4 {[%clk 0:03:00]}  e5 {[%clk 0:02:58]} 2. Nf3 {[%clk 0:02:55]}  Nc6 {[%clk 0:02:58]} 3. Bb5 {[%clk 0:02:44]}  a6 {[%clk 0:02:58]} 4. Bxc6 {[%clk 0:02:42]}  dxc6 {[%clk 0:02:57]} 5. Nc3 {[%clk 0:02:42]}  f6 {[%clk 0:02:56]} 6. d4 {[%clk 0:02:42]}  exd4 {[%clk 0:02:55]} 7. Qxd4 {[%clk 0:02:43]}  Qxd4 {[%clk 0:02:55]} 8. Nxd4 {[%clk 0:02:44]}  Bd7 {[%clk 0:02:56]} 9. Be3 {[%clk 0:02:43]}  O-O-O {[%clk 0:02:55]} 10. O-O-O {[%clk 0:02:44]}  Bb4 {[%clk 0:02:56]} 11. Nde2 {[%clk 0:02:42]}  Ne7 {[%clk 0:02:56]} 12. a3 {[%clk 0:02:42]}  Bd6 {[%clk 0:02:50]} 13. Bf4 {[%clk 0:02:41]}  Be6 {[%clk 0:02:46]} 14. Bxd6 {[%clk 0:02:41]}  cxd6 {[%clk 0:02:47]} 15. Nf4 {[%clk 0:02:39]}  Bf7 {[%clk 0:02:45]} 16. h4 {[%clk 0:02:37]}  Kc7 {[%clk 0:02:44]} 17. h5 {[%clk 0:02:37]}  Nc8 {[%clk 0:02:40]} 18. h6 {[%clk 0:02:36]}  g6 {[%clk 0:02:40]} 19. Rd3 {[%clk 0:02:27]}  Rhe8 {[%clk 0:02:38]} 20. Rf3 {[%clk 0:02:26]}  Rf8 {[%clk 0:02:23]} 21. Nd3 {[%clk 0:02:19]}  Be6 {[%clk 0:02:16]} 22. Ne2 {[%clk 0:02:08]}  b5 {[%clk 0:02:12]} 23. Nef4 {[%clk 0:02:05]}  Bd7 {[%clk 0:02:09]} 24. b4 {[%clk 0:01:52]}  Rde8 {[%clk 0:02:08]} 25. Re3 {[%clk 0:01:50]}  Nb6 {[%clk 0:02:08]} 26. Nb2 {[%clk 0:01:46]}  f5 {[%clk 0:01:47]} 27. Rhe1 {[%clk 0:01:17]}  fxe4 {[%clk 0:01:47]} 28. Rxe4 {[%clk 0:01:16]}  Rxe4 {[%clk 0:01:41]} 29. Rxe4 {[%clk 0:01:16]}  Rf7 {[%clk 0:01:40]} 30. Nbd3 {[%clk 0:00:57]}  Nc4 {[%clk 0:01:32]} 31. a4 {[%clk 0:00:51]}  d5 {[%clk 0:01:32]} 32. Rd4 {[%clk 0:00:26]}  bxa4 {[%clk 0:01:24]} 33. Nc5 {[%clk 0:00:26]}  a3 {[%clk 0:01:25]} 34. Nxa6+ {[%clk 0:00:20]}  Kd6 {[%clk 0:01:25]} 35. Nd3 {[%clk 0:00:00]}  a2 {[%clk 0:01:18]} 0-1


[Site "https://www.chess.com"]

[Event "Titled Tuesday Blitz June 13 Late 2023"]
[White "Slovineanu, Viacheslav"]
[Black "Ai, Evan"]
[WhiteFideId "13900510"]
[BlackFideId "2094770"]
[WhiteElo "2312"]
[BlackElo "1963"]
[Result "0-1"]
[Round "7"]
[TimeControl "180+2"]
[Date "2023.06.13"]
[WhiteClock "0:00:00"]
[BlackClock "0:00:08"]
[Board "121"]

1. d4 {[%clk 0:03:00]}  Nf6 {[%clk 0:02:59]} 2. Nf3 {[%clk 0:03:00]}  e6 {[%clk 0:02:59]} 3. c4 {[%clk 0:02:59]}  b6 {[%clk 0:02:59]} 4. e3 {[%clk 0:02:59]}  Bb7 {[%clk 0:02:59]} 5. Bd3 {[%clk 0:03:00]}  Be7 {[%clk 0:02:59]} 6. O-O {[%clk 0:02:59]}  O-O {[%clk 0:02:59]} 7. b3 {[%clk 0:02:58]}  d5 {[%clk 0:02:57]} 8. Bb2 {[%clk 0:02:58]}  dxc4 {[%clk 0:02:55]} 9. bxc4 {[%clk 0:02:58]}  Nbd7 {[%clk 0:02:56]} 10. Nc3 {[%clk 0:02:58]}  c5 {[%clk 0:02:56]} 11. Qe2 {[%clk 0:02:54]}  a6 {[%clk 0:02:43]} 12. Rad1 {[%clk 0:02:53]}  Qc7 {[%clk 0:02:43]} 13. d5 {[%clk 0:02:30]}  exd5 {[%clk 0:02:38]} 14. Nxd5 {[%clk 0:02:30]}  Bxd5 {[%clk 0:02:30]} 15. cxd5 {[%clk 0:02:29]}  Bd6 {[%clk 0:02:31]} 16. e4 {[%clk 0:02:20]}  Rfe8 {[%clk 0:02:31]} 17. a4 {[%clk 0:01:56]}  c4 {[%clk 0:02:28]} 18. Bb1 {[%clk 0:01:39]}  b5 {[%clk 0:02:28]} 19. axb5 {[%clk 0:01:29]}  axb5 {[%clk 0:02:29]} 20. Rfe1 {[%clk 0:01:27]}  c3 {[%clk 0:02:22]} 21. Bc1 {[%clk 0:01:09]}  b4 {[%clk 0:02:22]} 22. Qc2 {[%clk 0:00:49]}  Ne5 {[%clk 0:02:08]} 23. Nd4 {[%clk 0:00:27]}  Reb8 {[%clk 0:01:45]} 24. f4 {[%clk 0:00:25]}  Nc4 {[%clk 0:00:20]} 25. e5 {[%clk 0:00:22]}  Nxe5 {[%clk 0:00:19]} 26. fxe5 {[%clk 0:00:20]}  Bxe5 {[%clk 0:00:19]} 27. Kh1 {[%clk 0:00:13]}  Bxd4 {[%clk 0:00:18]} 28. Rxd4 {[%clk 0:00:12]}  b3 {[%clk 0:00:19]} 29. Qd3 {[%clk 0:00:11]}  c2 {[%clk 0:00:19]} 30. Bxc2 {[%clk 0:00:10]}  bxc2 {[%clk 0:00:17]} 31. d6 {[%clk 0:00:10]}  Qa5 {[%clk 0:00:17]} 32. Rf1 {[%clk 0:00:08]}  Qe5 {[%clk 0:00:09]} 33. d7 {[%clk 0:00:07]}  Rd8 {[%clk 0:00:09]} 34. Bf4 {[%clk 0:00:05]}  Qc5 {[%clk 0:00:09]} 35. Rc4 {[%clk 0:00:05]}  Qe7 {[%clk 0:00:07]} 36. Qxc2 {[%clk 0:00:04]}  Qxd7 {[%clk 0:00:07]} 37. Bg5 {[%clk 0:00:04]}  Nd5 {[%clk 0:00:07]} 38. Bxd8 {[%clk 0:00:03]}  Rxd8 {[%clk 0:00:07]} 39. Rd4 {[%clk 0:00:03]}  Qe6 {[%clk 0:00:07]} 40. Rfd1 {[%clk 0:00:03]}  Re8 {[%clk 0:00:07]} 41. Qd2 {[%clk 0:00:02]}  Ne3 {[%clk 0:00:06]} 42. Rd8 {[%clk 0:00:01]}  Nxd1 {[%clk 0:00:05]} 43. Rxe8+ {[%clk 0:00:01]}  Qxe8 {[%clk 0:00:06]} 44. Qxd1 {[%clk 0:00:02]}  g6 {[%clk 0:00:06]} 45. h3 {[%clk 0:00:02]}  h5 {[%clk 0:00:07]} 46. Qf3 {[%clk 0:00:02]}  Qe6 {[%clk 0:00:07]} 47. Kg1 {[%clk 0:00:02]}  Kh7 {[%clk 0:00:08]} 48. Kh2 {[%clk 0:00:03]}  Qd6+ {[%clk 0:00:08]} 49. Kg1 {[%clk 0:00:03]}  Qe6 {[%clk 0:00:09]} 50. Kh2 {[%clk 0:00:03]}  f6 {[%clk 0:00:09]} 51. Kg1 {[%clk 0:00:03]}  Kh6 {[%clk 0:00:09]} 52. Kh2 {[%clk 0:00:03]}  g5 {[%clk 0:00:10]} 53. Qa8 {[%clk 0:00:03]}  Qe5+ {[%clk 0:00:10]} 54. Kh1 {[%clk 0:00:03]}  Qe1+ {[%clk 0:00:10]} 55. Kh2 {[%clk 0:00:03]}  h4 {[%clk 0:00:10]} 56. Qh8+ {[%clk 0:00:03]}  Kg6 {[%clk 0:00:11]} 57. Qg8+ {[%clk 0:00:03]}  Kf5 {[%clk 0:00:11]} 58. Qc8+ {[%clk 0:00:03]}  Qe6 {[%clk 0:00:12]} 59. Qc2+ {[%clk 0:00:02]}  Qe4 {[%clk 0:00:12]} 60. Qc8+ {[%clk 0:00:03]}  Kf4 {[%clk 0:00:10]} 61. Qc7+ {[%clk 0:00:02]}  Qe5 {[%clk 0:00:10]} 62. Qc4+ {[%clk 0:00:02]}  Ke3+ {[%clk 0:00:09]} 63. Kh1 {[%clk 0:00:02]}  Qa1+ {[%clk 0:00:08]} 64. Kh2 {[%clk 0:00:00]}  Qd4 {[%clk 0:00:08]} 0-1


[Site "https://www.chess.com"]

[Event "Titled Tuesday Blitz June 13 Late 2023"]
[White "Korpics, Zsolt"]
[Black "SergioMoralesG"]
[WhiteFideId "705241"]
[WhiteElo "2331"]
[BlackElo "2448"]
[Result "1-0"]
[Round "7"]
[TimeControl "180+2"]
[Date "2023.06.13"]
[WhiteClock "0:01:51"]
[BlackClock "0:01:24"]
[Board "122"]

1. e4 {[%clk 0:02:59]}  e5 {[%clk 0:02:58]} 2. Nf3 {[%clk 0:02:59]}  Nf6 {[%clk 0:02:59]} 3. Nxe5 {[%clk 0:02:58]}  d6 {[%clk 0:02:58]} 4. Nf3 {[%clk 0:02:59]}  Nxe4 {[%clk 0:02:59]} 5. Nc3 {[%clk 0:03:00]}  Nxc3 {[%clk 0:02:56]} 6. dxc3 {[%clk 0:03:01]}  Be7 {[%clk 0:02:55]} 7. Be3 {[%clk 0:03:01]}  O-O {[%clk 0:02:53]} 8. Qd2 {[%clk 0:03:01]}  Bf5 {[%clk 0:02:49]} 9. O-O-O {[%clk 0:03:00]}  Nd7 {[%clk 0:02:45]} 10. h4 {[%clk 0:02:50]}  Nf6 {[%clk 0:02:42]} 11. Nd4 {[%clk 0:02:49]}  Bd7 {[%clk 0:02:36]} 12. f3 {[%clk 0:02:41]}  a6 {[%clk 0:02:27]} 13. g4 {[%clk 0:02:30]}  c5 {[%clk 0:02:27]} 14. Nf5 {[%clk 0:02:19]}  Bxf5 {[%clk 0:02:25]} 15. gxf5 {[%clk 0:02:20]}  Qc8 {[%clk 0:02:07]} 16. Bh3 {[%clk 0:02:11]}  b5 {[%clk 0:01:54]} 17. Rhg1 {[%clk 0:02:08]}  Kh8 {[%clk 0:01:52]} 18. Qg2 {[%clk 0:02:01]}  Nh5 {[%clk 0:01:24]} 19. f6 {[%clk 0:01:51]} 1-0


[Site "https://www.chess.com"]

[Event "Titled Tuesday Blitz June 13 Late 2023"]
[White "Sala, Giulia"]
[Black "Kaplan, Avi Harrison"]
[WhiteFideId "2840451"]
[BlackFideId "30934559"]
[WhiteElo "1769"]
[BlackElo "1983"]
[Result "1/2-1/2"]
[Round "7"]
[TimeControl "180+2"]
[Date "2023.06.13"]
[WhiteClock "0:00:32"]
[BlackClock "0:00:21"]
[Board "123"]

1. d4 {[%clk 0:03:00]}  g6 {[%clk 0:02:55]} 2. Bf4 {[%clk 0:02:59]}  Bg7 {[%clk 0:02:55]} 3. Nc3 {[%clk 0:02:59]}  c5 {[%clk 0:02:52]} 4. e3 {[%clk 0:02:56]}  f5 {[%clk 0:02:51]} 5. Nf3 {[%clk 0:02:52]}  a6 {[%clk 0:02:44]} 6. Nd5 {[%clk 0:02:45]}  d6 {[%clk 0:02:32]} 7. dxc5 {[%clk 0:02:45]}  e5 {[%clk 0:02:32]} 8. Bg5 {[%clk 0:02:42]}  Nf6 {[%clk 0:02:22]} 9. Nb6 {[%clk 0:02:39]}  Ra7 {[%clk 0:02:18]} 10. Nxc8 {[%clk 0:02:32]}  Qxc8 {[%clk 0:02:05]} 11. Qxd6 {[%clk 0:02:32]}  Qd8 {[%clk 0:01:48]} 12. Qxd8+ {[%clk 0:02:26]}  Kxd8 {[%clk 0:01:48]} 13. Nxe5 {[%clk 0:02:27]}  Kc8 {[%clk 0:01:45]} 14. O-O-O {[%clk 0:02:25]}  Nc6 {[%clk 0:01:41]} 15. Bc4 {[%clk 0:02:20]}  Nxe5 {[%clk 0:01:40]} 16. Be6+ {[%clk 0:02:15]}  Kb8 {[%clk 0:01:21]} 17. Bf4 {[%clk 0:02:15]}  Nh5 {[%clk 0:01:21]} 18. Rd5 {[%clk 0:01:40]}  Nxf4 {[%clk 0:01:18]} 19. exf4 {[%clk 0:01:41]}  Ng4 {[%clk 0:01:11]} 20. Rd7 {[%clk 0:01:37]}  Bh6 {[%clk 0:01:07]} 21. g3 {[%clk 0:01:28]}  Nxf2 {[%clk 0:01:07]} 22. Re1 {[%clk 0:01:18]}  Ne4 {[%clk 0:01:06]} 23. b4 {[%clk 0:01:16]}  a5 {[%clk 0:01:06]} 24. Bd5 {[%clk 0:01:09]}  axb4 {[%clk 0:01:02]} 25. Bxe4 {[%clk 0:01:07]}  fxe4 {[%clk 0:01:02]} 26. Rxe4 {[%clk 0:01:08]}  b6 {[%clk 0:00:38]} 27. Rxa7 {[%clk 0:01:00]}  Kxa7 {[%clk 0:00:38]} 28. cxb6+ {[%clk 0:01:01]}  Kxb6 {[%clk 0:00:38]} 29. Rxb4+ {[%clk 0:01:01]}  Kc5 {[%clk 0:00:38]} 30. Rb7 {[%clk 0:01:00]}  Kc6 {[%clk 0:00:33]} 31. Rf7 {[%clk 0:00:58]}  Bf8 {[%clk 0:00:32]} 32. Kd2 {[%clk 0:00:50]}  Bc5 {[%clk 0:00:30]} 33. Kc3 {[%clk 0:00:47]}  Bb6 {[%clk 0:00:29]} 34. Kc4 {[%clk 0:00:45]}  Bd8 {[%clk 0:00:27]} 35. a4 {[%clk 0:00:44]}  Kb6 {[%clk 0:00:23]} 36. Kb4 {[%clk 0:00:41]}  Ka6 {[%clk 0:00:22]} 37. c4 {[%clk 0:00:40]}  Ba5+ {[%clk 0:00:22]} 38. Kc5 {[%clk 0:00:36]}  Rc8+ {[%clk 0:00:22]} 39. Kd5 {[%clk 0:00:36]}  Bb6 {[%clk 0:00:20]} 40. Rxh7 {[%clk 0:00:34]}  Rc5+ {[%clk 0:00:20]} 41. Ke6 {[%clk 0:00:32]}  Rxc4 {[%clk 0:00:20]} 42. Kf6 {[%clk 0:00:30]}  Rc6+ {[%clk 0:00:19]} 43. Kg5 {[%clk 0:00:28]}  Bd8+ {[%clk 0:00:20]} 44. Kg4 {[%clk 0:00:28]}  Ka5 {[%clk 0:00:18]} 45. h4 {[%clk 0:00:27]}  Kxa4 {[%clk 0:00:18]} 46. h5 {[%clk 0:00:27]}  gxh5+ {[%clk 0:00:17]} 47. Rxh5 {[%clk 0:00:28]}  Kb4 {[%clk 0:00:17]} 48. Rd5 {[%clk 0:00:29]}  Bc7 {[%clk 0:00:17]} 49. Kg5 {[%clk 0:00:20]}  Kc4 {[%clk 0:00:15]} 50. Rd7 {[%clk 0:00:21]}  Bd6 {[%clk 0:00:15]} 51. g4 {[%clk 0:00:19]}  Kd5 {[%clk 0:00:15]} 52. f5 {[%clk 0:00:20]}  Rc8 {[%clk 0:00:12]} 53. Rg7 {[%clk 0:00:17]}  Ke5 {[%clk 0:00:08]} 54. Rg6 {[%clk 0:00:16]}  Kd5 {[%clk 0:00:04]} 55. Re6 {[%clk 0:00:15]}  Rg8+ {[%clk 0:00:05]} 56. Kh5 {[%clk 0:00:15]}  Rh8+ {[%clk 0:00:04]} 57. Kg5 {[%clk 0:00:14]}  Rg8+ {[%clk 0:00:04]} 58. Kh5 {[%clk 0:00:15]}  Be5 {[%clk 0:00:04]} 59. g5 {[%clk 0:00:13]}  Ke4 {[%clk 0:00:04]} 60. Kg4 {[%clk 0:00:10]}  Rf8 {[%clk 0:00:03]} 61. f6 {[%clk 0:00:08]}  Kd5 {[%clk 0:00:03]} 62. Re7 {[%clk 0:00:09]}  Bd6 {[%clk 0:00:03]} 63. Rh7 {[%clk 0:00:07]}  Ke6 {[%clk 0:00:03]} 64. Kh5 {[%clk 0:00:07]}  Bf4 {[%clk 0:00:03]} 65. Kg6 {[%clk 0:00:06]}  Rg8+ {[%clk 0:00:03]} 66. Rg7 {[%clk 0:00:07]}  Rf8 {[%clk 0:00:02]} 67. f7 {[%clk 0:00:07]}  Be5 {[%clk 0:00:01]} 68. Rg8 {[%clk 0:00:08]}  Rxf7 {[%clk 0:00:02]} 69. Re8+ {[%clk 0:00:08]}  Re7 {[%clk 0:00:02]} 70. Rxe7+ {[%clk 0:00:08]}  Kxe7 {[%clk 0:00:03]} 71. Kf5 {[%clk 0:00:09]}  Bg7 {[%clk 0:00:03]} 72. g6 {[%clk 0:00:10]}  Kf8 {[%clk 0:00:04]} 73. Ke4 {[%clk 0:00:10]}  Kg8 {[%clk 0:00:05]} 74. Kd5 {[%clk 0:00:11]}  Bf8 {[%clk 0:00:06]} 75. Kc6 {[%clk 0:00:12]}  Kg7 {[%clk 0:00:07]} 76. Kb5 {[%clk 0:00:13]}  Ba3 {[%clk 0:00:08]} 77. Kc4 {[%clk 0:00:14]}  Bb2 {[%clk 0:00:08]} 78. Kb5 {[%clk 0:00:15]}  Bc1 {[%clk 0:00:09]} 79. Ka6 {[%clk 0:00:16]}  Bd2 {[%clk 0:00:10]} 80. Kb7 {[%clk 0:00:16]}  Be3 {[%clk 0:00:11]} 81. Ka8 {[%clk 0:00:17]}  Bf4 {[%clk 0:00:12]} 82. Kb7 {[%clk 0:00:18]}  Bg5 {[%clk 0:00:13]} 83. Ka6 {[%clk 0:00:19]}  Bf6 {[%clk 0:00:14]} 84. Kb5 {[%clk 0:00:20]}  Kf8 {[%clk 0:00:15]} 85. Kc6 {[%clk 0:00:21]}  Bg7 {[%clk 0:00:16]} 86. Kb7 {[%clk 0:00:22]}  Ke8 {[%clk 0:00:17]} 87. Ka8 {[%clk 0:00:23]}  Kd8 {[%clk 0:00:17]} 88. Kb7 {[%clk 0:00:24]}  Kd7 {[%clk 0:00:18]} 89. Ka6 {[%clk 0:00:25]}  Kd6 {[%clk 0:00:19]} 90. Kb5 {[%clk 0:00:25]}  Kd5 {[%clk 0:00:20]} 91. Ka4 {[%clk 0:00:26]}  Kd4 {[%clk 0:00:21]} 92. Kb3 {[%clk 0:00:26]}  Kd3 {[%clk 0:00:21]} 93. Ka4 {[%clk 0:00:27]}  Kd2 {[%clk 0:00:22]} 94. Kb5 {[%clk 0:00:28]}  Kc2 {[%clk 0:00:23]} 95. Kc6 {[%clk 0:00:28]}  Kd3 {[%clk 0:00:23]} 96. Kd7 {[%clk 0:00:29]}  Ke4 {[%clk 0:00:24]} 97. Ke8 {[%clk 0:00:30]}  Kf5 {[%clk 0:00:24]} 98. Kf7 {[%clk 0:00:31]}  Ba1 {[%clk 0:00:24]} 99. g7 {[%clk 0:00:32]}  Bxg7 {[%clk 0:00:21]} 1/2-1/2


[Site "https://www.chess.com"]

[Event "Titled Tuesday Blitz June 13 Late 2023"]
[White "Lalanne, Pablo"]
[Black "Sarkar, Justin"]
[WhiteFideId "112151"]
[BlackFideId "2010011"]
[WhiteElo "2120"]
[BlackElo "2151"]
[Result "1-0"]
[Round "7"]
[TimeControl "180+2"]
[Date "2023.06.13"]
[WhiteClock "0:00:25"]
[BlackClock "0:00:00"]
[Board "124"]

1. e4 {[%clk 0:03:00]}  e5 {[%clk 0:02:56]} 2. Nf3 {[%clk 0:03:01]}  Nc6 {[%clk 0:02:55]} 3. Bb5 {[%clk 0:03:01]}  a6 {[%clk 0:02:53]} 4. Ba4 {[%clk 0:03:01]}  Nf6 {[%clk 0:02:52]} 5. O-O {[%clk 0:03:01]}  Nxe4 {[%clk 0:02:52]} 6. d4 {[%clk 0:03:01]}  b5 {[%clk 0:02:51]} 7. Bb3 {[%clk 0:03:01]}  d5 {[%clk 0:02:50]} 8. dxe5 {[%clk 0:03:01]}  Be6 {[%clk 0:02:50]} 9. Nbd2 {[%clk 0:03:01]}  Nc5 {[%clk 0:02:49]} 10. c3 {[%clk 0:03:01]}  d4 {[%clk 0:02:48]} 11. Ng5 {[%clk 0:02:46]}  Qxg5 {[%clk 0:02:48]} 12. Qf3 {[%clk 0:02:41]}  O-O-O {[%clk 0:01:44]} 13. Bxe6+ {[%clk 0:02:38]}  fxe6 {[%clk 0:01:27]} 14. Qxc6 {[%clk 0:02:37]}  Qxe5 {[%clk 0:01:21]} 15. b4 {[%clk 0:02:34]}  Qd5 {[%clk 0:01:18]} 16. Qxd5 {[%clk 0:02:33]}  exd5 {[%clk 0:01:17]} 17. bxc5 {[%clk 0:02:34]}  dxc3 {[%clk 0:01:16]} 18. Nb3 {[%clk 0:02:32]}  d4 {[%clk 0:01:15]} 19. Ba3 {[%clk 0:02:28]}  g6 {[%clk 0:01:07]} 20. Bb4 {[%clk 0:02:27]}  Bg7 {[%clk 0:01:05]} 21. a4 {[%clk 0:02:26]}  d3 {[%clk 0:00:24]} 22. axb5 {[%clk 0:02:23]}  d2 {[%clk 0:00:22]} 23. bxa6 {[%clk 0:02:01]}  c2 {[%clk 0:00:17]} 24. Bxd2 {[%clk 0:01:55]}  Bxa1 {[%clk 0:00:15]} 25. Rxa1 {[%clk 0:01:55]}  Kb8 {[%clk 0:00:04]} 26. Rc1 {[%clk 0:01:37]}  Rd3 {[%clk 0:00:03]} 27. Rxc2 {[%clk 0:01:04]}  Rxb3 {[%clk 0:00:03]} 28. g3 {[%clk 0:01:01]}  Rd8 {[%clk 0:00:03]} 29. Be3 {[%clk 0:00:56]}  Rd1+ {[%clk 0:00:03]} 30. Kg2 {[%clk 0:00:56]}  Ra3 {[%clk 0:00:03]} 31. Rb2+ {[%clk 0:00:49]}  Kc8 {[%clk 0:00:03]} 32. Rb4 {[%clk 0:00:40]}  Rxa6 {[%clk 0:00:03]} 33. Rh4 {[%clk 0:00:40]}  h5 {[%clk 0:00:02]} 34. Re4 {[%clk 0:00:38]}  Rf6 {[%clk 0:00:02]} 35. Re7 {[%clk 0:00:32]}  Rf5 {[%clk 0:00:00]} 36. Rg7 {[%clk 0:00:25]} 1-0


[Site "https://www.chess.com"]

[Event "Titled Tuesday Blitz June 13 Late 2023"]
[White "Vila Dupla, Aurelio"]
[Black "Goncalves, Davi Sulzbacher"]
[WhiteFideId "2203383"]
[BlackFideId "2154510"]
[WhiteElo "2009"]
[BlackElo "2182"]
[Result "0-1"]
[Round "7"]
[TimeControl "180+2"]
[Date "2023.06.13"]
[WhiteClock "0:00:00"]
[BlackClock "0:00:56"]
[Board "126"]

1. Nf3 {[%clk 0:03:00]}  c5 {[%clk 0:02:19]} 2. c4 {[%clk 0:02:57]}  g6 {[%clk 0:02:17]} 3. d4 {[%clk 0:02:55]}  Bg7 {[%clk 0:02:16]} 4. e4 {[%clk 0:02:55]}  cxd4 {[%clk 0:02:16]} 5. Nxd4 {[%clk 0:02:54]}  Nf6 {[%clk 0:02:13]} 6. Nc3 {[%clk 0:02:53]}  O-O {[%clk 0:02:14]} 7. Be2 {[%clk 0:02:52]}  e6 {[%clk 0:02:09]} 8. O-O {[%clk 0:02:35]}  d5 {[%clk 0:02:09]} 9. Bg5 {[%clk 0:02:18]}  e5 {[%clk 0:02:01]} 10. Nf3 {[%clk 0:02:08]}  d4 {[%clk 0:02:01]} 11. Nd5 {[%clk 0:02:06]}  Nbd7 {[%clk 0:01:57]} 12. Qc1 {[%clk 0:01:43]}  h6 {[%clk 0:01:42]} 13. Nxf6+ {[%clk 0:01:32]}  Nxf6 {[%clk 0:01:41]} 14. Bxh6 {[%clk 0:01:29]}  Nxe4 {[%clk 0:01:41]} 15. Bxg7 {[%clk 0:01:27]}  Kxg7 {[%clk 0:01:42]} 16. Nxe5 {[%clk 0:01:27]}  Qf6 {[%clk 0:01:31]} 17. Nd3 {[%clk 0:01:18]}  Bf5 {[%clk 0:01:25]} 18. Bf3 {[%clk 0:01:08]}  Rfe8 {[%clk 0:01:22]} 19. Re1 {[%clk 0:00:53]}  Ng5 {[%clk 0:01:13]} 20. Be2 {[%clk 0:00:35]}  Rxe2 {[%clk 0:01:12]} 21. Rxe2 {[%clk 0:00:34]}  Bxd3 {[%clk 0:01:12]} 22. Rd2 {[%clk 0:00:34]}  Be4 {[%clk 0:01:05]} 23. Qd1 {[%clk 0:00:29]}  Nf3+ {[%clk 0:00:59]} 24. Kh1 {[%clk 0:00:00]}  Qf4 {[%clk 0:00:56]} 0-1


[Site "https://www.chess.com"]